Cogmind - Beta 14 @@@ ROGUE MODE // 2025.01.16 @ 12:28:30 Player: Hydrogenious Result: Destroyed by H-55 Commando with Gauss Rifle Performance ------------- Evolutions (2) 1000 Regions Visited (6) 1200 Robots Destroyed (31) 155 Value Destroyed (1119) 1119 Prototype IDs (3) 60 Alien Tech Used (0) 0 Bonus (0) 0 TOTAL SCORE: 3534 Bonus ------- None Cogmind --------- Core Integrity 0/550 Matter 290/300 Energy 100/100 System Corruption 0% Temperature Cool (0) Movement Core (700) Ox13 Location -8/Materials Parts ------- > --- POWER (1) -------- (None) > --- PROPULSION (3) --- (None) > --- UTILITY (5) ------ High-capacity Storage Unit Advanced Visual Processing Unit Improved Signal Interpreter Improved Terrain Scan Processor > --- WEAPON (2) ------- (None) > --- INVENTORY (20) --- Heavy Ion Engine Nuclear Core Nuclear Core Light Nuclear Core Light Nuclear Core Light Nuclear Core Sensor Array Improved Signal Interpreter Hardened Medium Armor Plating Peak State ------------ > --- POWER ------------ Deuterium Engine > --- PROPULSION ------- Compact Wheel Compact Wheel Armored Wheel > --- UTILITY ---------- High-capacity Storage Unit Advanced Visual Processing Unit Improved Sensor Array Improved Signal Interpreter Hacking Suite > --- WEAPON ----------- Pulse Rifle Pulse Rifle > --- INVENTORY -------- Heavy Ion Engine Nuclear Core Light Nuclear Core Light Nuclear Core Light Nuclear Core Sensor Array Improved Terrain Scan Processor Hardened Medium Armor Plating EM Pulse Gun Particle Gun [Rating: 28] Favorites ----------- Power Light Ion Engine Engine Light Ion Engine Power Core Nuclear Core Propulsion Compact Wheel Wheel Compact Wheel Utility Sensor Array Device Sensor Array Storage High-capacity Storage Unit Processor Advanced Visual Processing Unit Hackware Hacking Suite Protection Hardened Medium Armor Plating Weapon EM Pulse Gun Energy Gun EM Pulse Gun Ballistic Gun Assault Rifle Build | -11 -10 -9 -9 -9 -8 -8 ------- Run | Yrd Mat Mat Min Exi Min Mat Slots Evolved 4 | . . 2 . . . 2 Power . | . . . . . . . Propulsion 1 | . . . . . . 1 Utility 3 | . . 2 . . . 1 Weapon . | . . . . . . . Parts Attached 37 | 6 2 7 . 2 6 14 Power 7 | 1 . 3 . . 1 2 Engine 5 | 1 . 3 . . 1 . Core 2 | . . . . . . 2 Reactor . | . . . . . . . Propulsion 9 | 2 1 2 . . 1 3 Treads . | . . . . . . . Leg . | . . . . . . . Wheel 9 | 2 1 2 . . 1 3 Hover . | . . . . . . . Flight . | . . . . . . . Utility 12 | 1 1 1 . 2 3 4 Device 4 | . 1 1 . . 1 1 Storage 3 | 1 . . . 2 . . Processor 3 | . . . . . 1 2 Hackware 1 | . . . . . . 1 Protection 1 | . . . . . 1 . Artifact . | . . . . . . . Weapon 9 | 2 . 1 . . 1 5 Energy Gun 8 | 1 . 1 . . 1 5 Energy Cannon . | . . . . . . . Ballistic Gun 1 | 1 . . . . . . Ballistic Cannon . | . . . . . . . Launcher . | . . . . . . . Special Weapon . | . . . . . . . Impact Weapon . | . . . . . . . Slashing Weapon . | . . . . . . . Piercing Weapon . | . . . . . . . Special Melee Weapon . | . . . . . . . Unidentified Prototypes 1 | . . 1 . . . . Parts Lost 24 | . 1 4 . . 4 15 Power 4 | . . 1 . . 1 2 Propulsion 9 | . 1 2 . . 1 5 Utility 4 | . . . . . 1 3 Weapon 7 | . . 1 . . 1 5 Highest Loss Streak 10 | . 1 4 . . 2 10 To Critical Strikes . | . . . . . . . Average Slot Usage (%) 87 | . 85 74 88 88 95 88 Engine 8 | . 14 9 11 11 10 2 Core 1 | . . . . . . 5 Wheel 20 | . 22 14 22 22 21 20 Device 14 | . 5 17 22 22 19 3 Storage 10 | . 14 11 11 11 11 9 Processor 7 | . . . . . 8 22 Hackware 1 | . . . . . . 6 Energy Gun 18 | . 14 14 22 22 22 16 Ballistic Gun 2 | . 14 7 . . . . Peak Build Rating 28 | 6 8 13 11 11 20 28 Average Rating 14 | 3 6 9 11 11 16 23 On Entrance 9 | . 6 8 11 11 11 20 Naked Turns . | . . . . . . . Heaviest Build 63 | 11 12 13 13 48 63 63 Greatest Support 44 | 32 32 32 32 32 32 44 Greatest Overweight (x) 14 | . . 4 . 1 3 14 Average Overweight (x) . | . . . . . 1 1 Largest Inventory Capacity 20 | 8 8 8 8 20 20 20 Average Capacity 15 | 6 8 8 8 15 20 20 Most Carried 13 | 5 8 8 6 7 8 13 Average Carried 7 | 2 3 7 6 6 6 9 Final Capacity 20 | 8 8 8 8 20 20 20 Final Carried 9 | 2 8 6 6 6 7 9 Class Distribution -------------------- 77% | Mutant 9% | Scavenger-Mutant 5% | Derelict-Mutant 4% | Skirmisher 3% | Derelict-Skirmisher Dominant Class ---------------- Mutant | -10/Materials Mutant | -9/Materials Mutant | -9/Mines Mutant | -9/Exiles Mutant | -8/Mines Scavenger-Mutant | -8/Materials Resources | -11 -10 -9 -9 -9 -8 -8 ----------- Run | Yrd Mat Mat Min Exi Min Mat Matter Collected 601 | 191 92 118 . . 95 105 Remotely . | . . . . . . . Salvage Created 1344 | . 84 325 103 . 140 692 Parts 70 | . 6 16 6 . 7 35 Haulers Intercepted . | . . . . . . . Recyclers Shooed 1 | . . 1 . . . . Parts Field Recycled . | . . . . . . . Retrieved Matter . | . . . . . . . Parts Self-Destructed . | . . . . . . . Prevented . | . . . . . . . Kills | -11 -10 -9 -9 -9 -8 -8 ------- Run | Yrd Mat Mat Min Exi Min Mat Combat Hostiles Destroyed 27 | . 2 7 2 . 5 11 Guns 27 | . 2 7 2 . 5 11 Classes Destroyed 8 | . 1 1 . . 2 4 Builder 1 | . . . . . . 1 Recycler 1 | . . . . . . 1 Watcher 2 | . . . . . . 2 Swarmer 3 | . . . . . 3 . Grunt 18 | . 2 6 2 . 1 7 Brawler 1 | . . . . . . 1 Duelist 1 | . . . . . 1 . Sentry 4 | . . 1 . . . 3 Best Kill Streak 4 | . 2 2 2 . 2 4 Combat Bots Only 3 | . 2 2 2 . 2 3 Max Kills in Single Turn 1 | . 1 1 1 . 1 1 Gunslinging . | . . . . . . . Exploded . | . . . . . . . Melee . | . . . . . . . Uniques/NPCs Destroyed . | . . . . . . . Combat | -11 -10 -9 -9 -9 -8 -8 -------- Run | Yrd Mat Mat Min Exi Min Mat Hostile Shots Fired 235 | . 8 57 12 . 33 125 Missed 63 | . 2 18 5 . 15 23 Damage Taken 2417 | . 149 485 82 . 202 1499 Core 878 | . 35 190 32 . 65 556 Absorbed by Shields . | . . . . . . . Core Remaining (%) 71 | 100 86 . . . 28 . Volleys Fired 119 | . 6 31 5 . 17 60 Largest 2 | . 2 2 2 . 2 2 Hottest 128 | . 60 80 80 . 103 128 Shots Fired 216 | . 12 59 10 . 33 102 Gun 216 | . 12 59 10 . 33 102 Cannon . | . . . . . . . Launcher . | . . . . . . . Special . | . . . . . . . Kinetic 32 | . 6 26 . . . . Thermal 146 | . 6 28 5 . 16 91 Explosive . | . . . . . . . Electromagnetic 38 | . . 5 5 . 17 11 Robot Hit Streak 9 | . 7 3 4 . 7 9 Robot Miss Streak 6 | . 1 2 2 . 2 6 Penetration Max . | . . . . . . . Secondary Targets 6 | . . 2 . . 2 2 Max Gunslinging Chain 1 | . . 1 . . 1 1 Shots Hit Robots 133 | . 10 33 5 . 21 64 Core Hits 61 | . 5 13 5 . 8 30 Critical Kills . | . . . . . . . Critical Parts Destroyed . | . . . . . . . Critical Strikes 4 | . . . . . . 4 Burn 4 | . . . . . . 4 Melee Attacks . | . . . . . . . Impact . | . . . . . . . Slashing . | . . . . . . . Piercing . | . . . . . . . Sneak Attacks . | . . . . . . . Combat Hostiles . | . . . . . . . Follow-up Attacks . | . . . . . . . Damage Inflicted 1987 | . 135 426 67 . 310 1049 Guns 1972 | . 120 426 67 . 310 1049 Cannons . | . . . . . . . Explosions . | . . . . . . . Melee . | . . . . . . . Ramming 15 | . 15 . . . . . Kinetic 292 | . 72 220 . . . . Thermal 1392 | . 48 179 24 . 219 922 Explosive . | . . . . . . . Electromagnetic 288 | . . 27 43 . 91 127 Impact . | . . . . . . . Slashing . | . . . . . . . Piercing . | . . . . . . . Highest Corruption . | . . . . . . . Average Corruption . | . . . . . . . Corruption Purged . | . . . . . . . Corruption Blocked . | . . . . . . . Overload Shots . | . . . . . . . Overflow Damage . | . . . . . . . Projectiles . | . . . . . . . Explosions . | . . . . . . . Melee . | . . . . . . . Knockbacks 1 | . 1 . . . . . Impact 1 | . 1 . . . . . Kinetic . | . . . . . . . Secondary . | . . . . . . . Self-Inflicted Damage 7 | . 7 . . . . . Shots . | . . . . . . . Rammed 1 | . 1 . . . . . Targets Rammed 1 | . 1 . . . . . Kicked . | . . . . . . . Crushed . | . . . . . . . Highest Temperature 512 | . 48 9 . . 204 512 Average Temperature 126 | . 30 4 . . 71 148 Received Heat Transfer 831 | . 48 261 36 . 63 423 Effects 13 | . . . . . 1 12 Shutdowns 1 | . . . . . . 1 Energy Bleed 1 | . . . . . 1 . Interference 8 | . . . . . . 8 Damage (minor) 1 | . . . . . . 1 Damage (major) 2 | . . . . . . 2 Siege Activations . | . . . . . . . Robots Corrupted . | . . . . . . . Combat Hostiles . | . . . . . . . Parts Fried . | . . . . . . . Impact Corruptions . | . . . . . . . Robots Melted . | . . . . . . . Combat Hostiles . | . . . . . . . Parts Melted 6 | . . . . . . 6 Heat Transferred 3473 | . 100 400 50 . 481 2442 Parts Sabotaged . | . . . . . . . Parts Stolen . | . . . . . . . Parts Stripped . | . . . . . . . Power Chain Reactions . | . . . . . . . Alert | -11 -10 -9 -9 -9 -8 -8 ------- Run | Yrd Mat Mat Min Exi Min Mat Peak Influence 202 | . 50 191 124 . 120 202 Initial 74 | . . 20 74 . . . Average 83 | . 25 126 104 . 77 91 Maximum Alert Level 1 | . . . . . . 1 Low Security (%) 99 | 100 100 100 100 . 100 97 Level 1 . | . . . . . . 2 Level 2 . | . . . . . . . Level 3 . | . . . . . . . Level 4 . | . . . . . . . Level 5 . | . . . . . . . High Security . | . . . . . . . Max Security . | . . . . . . . Squads Dispatched 5 | . . 3 . . . 2 Investigation 4 | . . 2 . . . 2 Extermination . | . . . . . . . Reinforcement 1 | . . 1 . . . . Assault . | . . . . . . . Garrison . | . . . . . . . Intercept . | . . . . . . . Searches Triggered . | . . . . . . . Construction Impeded . | . . . . . . . Haulers Reinforced . | . . . . . . . Active Scanning Responses . | . . . . . . . Cargo Convoy Interrupts . | . . . . . . . Stealth | -11 -10 -9 -9 -9 -8 -8 --------- Run | Yrd Mat Mat Min Exi Min Mat Distress Signals 2 | . . 1 . . . 1 Communications Jammed . | . . . . . . . Distress Signals . | . . . . . . . Times Spotted 45 | . 3 9 6 . 6 21 Peak Tracking Total 5 | . 2 3 5 . 4 3 Tactical Retreats 4 | . . . . . 1 3 Traps | -11 -10 -9 -9 -9 -8 -8 ------- Run | Yrd Mat Mat Min Exi Min Mat Traps Triggered 1 | . 1 . . . . . Indirectly . | . . . . . . . Trap Hack Attempts . | . . . . . . . Triggered . | . . . . . . . Disarmed . | . . . . . . . Reprogrammed . | . . . . . . . Reused . | . . . . . . . Traps Extracted . | . . . . . . . Installed . | . . . . . . . Triggered . | . . . . . . . Machines | -11 -10 -9 -9 -9 -8 -8 ---------- Run | Yrd Mat Mat Min Exi Min Mat Machines Disabled 1 | . . 1 . . . . Max in Single Turn 1 | . . 1 . . . . Machines Repaired . | . . . . . . . Machines Dismantled . | . . . . . . . Machines Sabotaged . | . . . . . . . Overloaded Fab Kills . | . . . . . . . Hacking | -11 -10 -9 -9 -9 -8 -8 --------- Run | Yrd Mat Mat Min Exi Min Mat Machines Accessed 11 | . . 2 . 4 . 5 Terminals 7 | . . 2 . . . 5 Fabricators . | . . . . . . . Repair Stations . | . . . . . . . Recycling Units . | . . . . . . . Scanalyzers . | . . . . . . . Garrison Access . | . . . . . . . Total Hacks 71 | . . 5 . 49 . 17 Successful 58 | . . 1 . 49 . 8 Failed 13 | . . 4 . . . 9 Catastrophic 2 | . . 1 . . . 1 Database Lockouts . | . . . . . . . Manual 1 | . . 1 . . . . Terminals 22 | . . 5 . . . 17 Fabricators . | . . . . . . . Repair Stations . | . . . . . . . Recycling Units . | . . . . . . . Scanalyzers . | . . . . . . . Garrison Access . | . . . . . . . Terminal Hacks 58 | . . 1 . 49 . 8 Record 50 | . . . . 49 . 1 Prototype ID Bank 1 | . . . . . . 1 Unreport Threat 1 | . . . . . . 1 Dispatch Records 2 | . . 1 . . . 1 Security Status 1 | . . . . . . 1 Surveillance Status 1 | . . . . . . 1 Patrol Status 1 | . . . . . . 1 Investigation Status 1 | . . . . . . 1 Fabricator Hacks . | . . . . . . . Repair Station Hacks . | . . . . . . . Recycling Unit Hacks . | . . . . . . . Scanalyzer . | . . . . . . . Garrison Access Hacks . | . . . . . . . Unauthorized Hacks . | . . . . . . . Terminals . | . . . . . . . Fabricators . | . . . . . . . Repair Stations . | . . . . . . . Recycling Units . | . . . . . . . Scanalyzers . | . . . . . . . Garrison Access . | . . . . . . . Data Cores Recovered . | . . . . . . . Used . | . . . . . . . Hacking Detections 7 | . . 2 . . . 5 Full Trace Events 4 | . . 2 . . . 2 Feedback Events . | . . . . . . . Feedback Blocked . | . . . . . . . Robot Schematics Acquired . | . . . . . . . Robots Built . | . . . . . . . Authchips . | . . . . . . . Time . | . . . . . . . Total Robot Build Rating . | . . . . . . . Part Schematics Acquired . | . . . . . . . Parts Built . | . . . . . . . Authchips . | . . . . . . . Time . | . . . . . . . Total Part Build Rating . | . . . . . . . Parts Repaired . | . . . . . . . Time . | . . . . . . . Parts Recycled . | . . . . . . . Recycled Matter . | . . . . . . . Retrieved Matter . | . . . . . . . Retrieved Components . | . . . . . . . Parts Scanalyzed . | . . . . . . . Part Schematics Acquired . | . . . . . . . Parts Damaged . | . . . . . . . Bothacking | -11 -10 -9 -9 -9 -8 -8 ------------ Run | Yrd Mat Mat Min Exi Min Mat Used RIF Installer . | . . . . . . . Robots Hacked . | . . . . . . . Non-combat . | . . . . . . . Combat . | . . . . . . . Robot Hacks Applied . | . . . . . . . Relay Couplers Released . | . . . . . . . Fabnet Peak Effective % . | . . . . . . . Robots Rewired . | . . . . . . . Allies Hacked . | . . . . . . . Hacks Repelled . | . . . . . . . Allies | -11 -10 -9 -9 -9 -8 -8 -------- Run | Yrd Mat Mat Min Exi Min Mat Total Allies . | . . . . . . . Largest Group . | . . . . . . . Highest-Rated Group . | . . . . . . . Highest-Rated Ally . | . . . . . . . Total Orders . | . . . . . . . Ally Attacks . | . . . . . . . Total Damage . | . . . . . . . Kills . | . . . . . . . Allies Corrupted . | . . . . . . . Allies Melted . | . . . . . . . Intel | -11 -10 -9 -9 -9 -8 -8 ------- Run | Yrd Mat Mat Min Exi Min Mat Robot Analysis Total . | . . . . . . . Derelict Logs Recovered . | . . . . . . . Drone Launches . | . . . . . . . Drone Recoveries . | . . . . . . . Exploration | -11 -10 -9 -9 -9 -8 -8 ------------- Run | Yrd Mat Mat Min Exi Min Mat Turns Passed 2674 | 68 220 342 39 815 443 747 Spaces Moved 1976 | 59 186 193 25 748 331 434 Core 50 | 9 . 31 . . . 10 Treads . | . . . . . . . Legs . | . . . . . . . Wheels 1926 | 50 186 162 25 748 331 424 Hover . | . . . . . . . Flight . | . . . . . . . Fastest Speed 50 | 50 100 100 100 100 115 105 Average Speed 113 | 92 100 124 100 108 115 125 Slowest Speed 750 | 100 100 250 100 115 145 750 Overloaded Moves . | . . . . . . . Propulsion Burnouts . | . . . . . . . Robots Hopped . | . . . . . . . Cave-ins Triggered . | . . . . . . . Exploration Rate (%) 34 | 5 35 17 8 93 52 33 Regions Visited 6 Branch Regions 3 Pre-discovered Areas 1 | . . . . 1 . . Known Exits Taken . | . . . . . . . Unknown Exits Taken 6 | 1 1 1 1 1 1 . Scrap Searched 2 | . . . . . 2 . Spaces Dug . | . . . . . . . Terrain Destroyed . | . . . . . . . Melee . | . . . . . . . Projectile . | . . . . . . . AOE . | . . . . . . . Terrain Rammed . | . . . . . . . Walls Destroyed . | . . . . . . . Machines Disabled . | . . . . . . . Actions | -11 -10 -9 -9 -9 -8 -8 --------- Run | Yrd Mat Mat Min Exi Min Mat Total 2195 | 72 208 235 29 753 360 538 Wait 26 | . 6 2 . . . 18 Move 1970 | 58 185 192 24 747 330 434 Hop . | . . . . . . . Pick Up 39 | 8 8 3 . 2 6 12 Fast Attach . | . . . . . . . Attach 29 | 6 2 5 . . 6 10 Detach 1 | . . . . . 1 . Swap 8 | . . 2 . 2 . 4 Drop 2 | . . . . 2 . . Fire 119 | . 6 31 5 . 17 60 Melee . | . . . . . . . Ram 1 | . 1 . . . . . Kick . | . . . . . . . Crush . | . . . . . . . Escape Stasis . | . . . . . . . Rewire . | . . . . . . . Trap . | . . . . . . . Miscellaneous . | . . . . . . . Route ------- -11/Scrapyard -10/Materials -9/Materials -9/Mines -9/Exiles (discovered 2 exits: [*Min x2]) -8/Mines -8/Materials History --------- Turn | Location | Event 2 | -11/Scrapyard | Met Revision 17 34 | -11/Scrapyard | Discovered new exit (range 15) 69 | -11/Scrapyard | Entered Materials 252 | -10/Materials | Discovered new exit (range 15) 289 | -10/Materials | Entered another Materials area 289 | -9/Materials | Evolved 2 slots: Utility x2 314 | -9/Materials | Build established: Mutant 519 | -9/Materials | Met 8R-AWN 552 | -9/Materials | Lost 4 parts (1p2n1w) 566 | -9/Materials | Discovered new exit (range 11) 631 | -9/Materials | Entered Mines 632 | -9/Mines | Followed 8R-AWN into the Mines 636 | -9/Mines | Core integrity fell below 50% 664 | -9/Mines | Discovered new exit (range 5) 670 | -9/Mines | Entered Exiles 705 | -9/Exiles | Welcomed by 8R-AWN 726 | -9/Exiles | Met EX-HEX 769 | -9/Exiles | Met EX-BIN 910 | -9/Exiles | Met EX-DEC 919 | -9/Exiles | Learned location of Zion (-7) 1040 | -9/Exiles | Discovered new exit (range 14) 1166 | -9/Exiles | Visited The Gauntlet 1423 | -9/Exiles | Learned about 8R-AWN's background 1461 | -9/Exiles | Discovered new exit (range 14) 1485 | -9/Exiles | Entered Mines 1565 | -8/Mines | Discovered new exit (range 9) 1928 | -8/Mines | Entered Materials 1928 | -8/Materials | Evolved 2 slots: Propulsion x1, Utility x1 2601 | -8/Materials | Core integrity fell below 50% 2658 | -8/Materials | Core integrity fell below 20% 2675 | -8/Materials | Destroyed by H-55 Commando with Gauss Rifle Last Messages --------------- Beam Rifle destroyed. Penetrated by Slug. Wheel destroyed. Penetrated by Slug. Acquired 5 matter. Slug penetrates Wall. Penetrated by Slug. Lgt. Nuclear Core destroyed. Pulse Rifle destroyed. Hacking Suite destroyed. Penetrated by Slug. Particle Gun destroyed. Com. Wheel destroyed. Slug penetrates Wall. EM Pulse Gun destroyed. Penetrated by Slug. U-05 Engineer builds a Door. Penetrated by Slug. Recoil Stabilizer destroyed. Penetrated by Slug. Map ----- +----------------------------------------------------+ | ?????????????????????# # #????????????????? | | ????????????########## # """ #????????????????? | | ????????????# # # """ #????????????????? | | ????????????# """"" # # """ #????????????????? | | ????????????#* ""T""*# # #????????????????? | | ????????????# =!# # """ [#????????????????? | | !######## [%+ + """ #????????????????? | | !=% + " *# # """ #????????????????? | | [######## ! "" # # #????????????????? | | ????????????# # # #????????????????? | | ????????????# # # "T" #????????????????? | | ????????????####/##### # """ #????????????????? | | ???????????????# #???# # #????????????????? | | ???????????????# #???# ########????????????????? | | ???????????????# #???# #???????????????????????? | | ???????????????# #???# #???????????????????????? | | ?????######+#### ##### #???????????????????????? | | ??? #???????????????????????? | | ??? +???????????????????????? | | ??? #???????????????????????? | | ?????################# #???????????????????????? | | ?????????????????????# #???????????????????????? | | ?????????????????????# #???????????????????????? | | ??????????????########h ##############+#????????? | | ??????????????# ????? | | ??????????????+ @ ????? | | ??????????????# k ????? | | ??????????????####+## #####+########????????? | | ???????????????? ?# #?????????????????????? | | ???????????????# ??#!!**]]#?????????????????????? | | ???????????????# ???#!!**]]#?????????????????????? | | ???????????????#????########?????????????????????? | | ?????????????????????????????????????????????????? | | ?????????????????????????????????????????????????? | | ?????????????????????????????????????????????????? | | ?????????????????????????????????????????????????? | | ?????????????????????????????????????????????????? | | ?????????????????????????????????????????????????? | | ?????????????????????????????????????????????????? | | ?????????????????????????????????????????????????? | | ?????????????????????????????????????????????????? | | ?????????????????????????????????????????????????? | | ?????????????????????????????????????????????????? | | ?????????????????????????????????????????????????? | | ?????????????????????????????????????????????????? | | ?????????????????????????????????????????????????? | | ?????????????????????????????????????????????????? | | ?????????????????????????????????????????????????? | | ?????????????????????????????????????????????????? | | ?????????????????????????????????????????????????? | +----------------------------------------------------+ Best States ------------- Heat Dissipation 42 Energy Generation 14 Energy Capacity 275 Matter Stores 300 Matter Capacity 300 Sight Range 20 Robot Scan Range 15 Terrain Scan Density 110 Armor Coverage 225 Evasion (%) 50 Recoil Reduction 4 Offensive Hacking 10 Item Schematics ----------------- None Robot Schematics ------------------ None Fabricated ------------ Nothing Alien Tech Used ----------------- None Achievements -------------- Everything Is Under Control I Spy Librarian Challenges ------------ None Game ------ Seed HybridModifiedMachine Manual? 0 Play Time 00:36:57 Cumulative 5.0 hours Start 2025.01.16 @ 11:49:26 End 2025.01.16 @ 12:28:30 Sessions 1 Manual Loads 0 Difficulty Rogue Special Mode None Game No. 10 Rogue 10 Adventurer 0 Explorer 0 Win Type - Total 0 Types 0/0/0/0/0/0/0/0/0 Lore% 9 Gallery% 8 Achievement% 12 Wizard Run 0 Options --------- Layout 1 ASCII 0 Keyboard 0 Movement Arrows Keybinds 0 Fullscreen 1 Font 24/Smallcaps Map View 50x35 Zoom Use 0% Tactical HUD 0 Map Filters NONE Filters NONE Steam 1 RUN: a22765eb-021d-4e3f-8976-7bf69c5f0640